[Event "Open NK Rapid 2025"]
[Site "Helmond, Netherlands"]
[Date "2025.05.03"]
[Round "1.23"]
[White "Labruyere, Roger"]
[Black "Kulikova, Polina"]
[Result "1-0"]
[TimeControl "15+5"]
[WhiteFideId "1059505"]
[BlackFideId "1085921"]
[WhiteElo "2117"]
[BlackElo "1743"]

1. e4 {[%clk 00:15:09]} {[%emt 00:00:01]} c6 {[%clk 00:15:10]} {[%emt
00:00:01]} 2. d4 {[%clk 00:15:12]} {[%emt 00:00:01]} d5 {[%clk 00:15:14]}
{[%emt 00:00:01]} 3. e5 {[%clk 00:15:16]} {[%emt 00:00:01]} Bf5 {[%clk
00:15:15]} {[%emt 00:00:03]} 4. h4 {[%clk 00:15:20]} {[%emt 00:00:01]} h5
{[%clk 00:15:19]} {[%emt 00:00:02]} 5. Bd3 {[%clk 00:15:23]} {[%emt 00:00:02]}
Bxd3 {[%clk 00:15:22]} {[%emt 00:00:02]} 6. Qxd3 {[%clk 00:15:27]} {[%emt
00:00:01]} e6 {[%clk 00:15:26]} {[%emt 00:00:02]} 7. Nf3 {[%clk 00:15:30]}
{[%emt 00:00:01]} Qa5+ {[%clk 00:15:29]} {[%emt 00:00:02]} 8. Nbd2 {[%clk
00:15:33]} {[%emt 00:00:02]} Nh6 {[%clk 00:14:17]} {[%emt 00:01:16]} 9. O-O
{[%clk 00:15:34]} {[%emt 00:00:04]} Nf5 {[%clk 00:14:17]} {[%emt 00:00:05]} 10.
Nb3 {[%clk 00:15:19]} {[%emt 00:00:22]} Qa6 {[%clk 00:13:25]} {[%emt 00:00:56]}
11. Qc3 {[%clk 00:15:22]} {[%emt 00:00:02]} Nd7 {[%clk 00:13:11]} {[%emt
00:00:18]} 12. a4 {[%clk 00:14:27]} {[%emt 00:01:00]} Qb6 {[%clk 00:12:25]}
{[%emt 00:00:51]} 13. a5 {[%clk 00:14:31]} {[%emt 00:00:02]} Qc7 {[%clk
00:11:58]} {[%emt 00:00:31]} 14. Bg5 {[%clk 00:13:59]} {[%emt 00:00:37]} c5
{[%clk 00:10:12]} {[%emt 00:01:52]} 15. dxc5 {[%clk 00:13:16]} {[%emt
00:00:48]} Nxc5 {[%clk 00:09:34]} {[%emt 00:00:43]} 16. Nbd4 {[%clk 00:13:14]}
{[%emt 00:00:06]} Nxd4 {[%clk 00:08:50]} {[%emt 00:00:50]} 17. Nxd4 {[%clk
00:13:15]} {[%emt 00:00:02]} Qxe5 {[%clk 00:05:51]} {[%emt 00:03:06]} 18. Rfe1
{[%clk 00:11:54]} {[%emt 00:01:26]} Qd6 {[%clk 00:04:59]} {[%emt 00:00:57]} 19.
Nf5 {[%clk 00:11:43]} {[%emt 00:00:15]} Qd7 {[%clk 00:04:52]} {[%emt 00:00:12]}
20. Nxg7+ {[%clk 00:11:46]} {[%emt 00:00:03]} Bxg7 {[%clk 00:04:39]} {[%emt
00:00:18]} 21. Qxg7 {[%clk 00:11:48]} {[%emt 00:00:03]} Rf8 {[%clk 00:03:56]}
{[%emt 00:00:48]} 22. f3 {[%clk 00:09:26]} {[%emt 00:02:27]} Rc8 {[%clk
00:02:24]} {[%emt 00:01:36]} 23. Bh6 {[%clk 00:09:09]} {[%emt 00:00:22]} Qe7
{[%clk 00:01:49]} {[%emt 00:00:41]} 24. Qxf8+ {[%clk 00:09:12]} {[%emt
00:00:02]} Qxf8 {[%clk 00:01:51]} {[%emt 00:00:03]} 25. Bxf8 {[%clk 00:09:15]}
{[%emt 00:00:02]} Kxf8 {[%clk 00:01:54]} {[%emt 00:00:02]} 26. Re5 {[%clk
00:09:17]} {[%emt 00:00:02]} Nd7 {[%clk 00:01:50]} {[%emt 00:00:10]} 27. Rxh5
{[%clk 00:09:09]} {[%emt 00:00:13]} Rxc2 {[%clk 00:01:51]} {[%emt 00:00:04]} 28.
a6 {[%clk 00:09:06]} {[%emt 00:00:08]} Rxb2 {[%clk 00:01:40]} {[%emt 00:00:16]}
29. Rh8+ {[%clk 00:09:08]} {[%emt 00:00:02]} Ke7 {[%clk 00:01:44]} {[%emt
00:00:02]} 30. axb7 {[%clk 00:09:06]} {[%emt 00:00:07]} Rxb7 {[%clk 00:01:44]}
{[%emt 00:00:05]} 31. h5 {[%clk 00:09:10]} {[%emt 00:00:01]} Nf6 {[%clk
00:00:49]} {[%emt 00:01:00]} 32. h6 {[%clk 00:09:14]} {[%emt 00:00:01]} d4
{[%clk 00:00:48]} {[%emt 00:00:07]} 33. h7 {[%clk 00:09:15]} {[%emt 00:00:03]}
Nxh7 {[%clk 00:00:36]} {[%emt 00:00:17]} 34. Rxh7 {[%clk 00:09:19]} {[%emt
00:00:01]} d3 {[%clk 00:00:38]} {[%emt 00:00:03]} 35. Rd1 {[%clk 00:09:22]}
{[%emt 00:00:01]} Rd7 {[%clk 00:00:16]} {[%emt 00:00:27]} 36. Kf2 {[%clk
00:09:26]} {[%emt 00:00:01]} Kf6 {[%clk 00:00:13]} {[%emt 00:00:09]} 37. Ke3
{[%clk 00:09:29]} {[%emt 00:00:02]} a5 {[%clk 00:00:17]} {[%emt 00:00:01]} 38.
Rxd3 {[%clk 00:09:32]} {[%emt 00:00:02]} Rxd3+ {[%clk 00:00:20]} 39. Kxd3
{[%clk 00:09:36]} Kg6 {[%clk 00:00:21]} {[%emt 00:00:04]} 40. Rh4 {[%clk
00:09:40]} {[%emt 00:00:02]} f5 {[%clk 00:00:23]} {[%emt 00:00:03]} 41. Ra4
{[%clk 00:09:44]} Kg5 {[%clk 00:00:24]} {[%emt 00:00:04]} 42. g3 {[%clk
00:09:46]} {[%emt 00:00:02]} e5 {[%clk 00:00:11]} {[%emt 00:00:19]} 43. Rxa5
{[%clk 00:09:50]} {[%emt 00:00:01]} Kf6 {[%clk 00:00:14]} 44. f4 {[%clk
00:09:53]} {[%emt 00:00:03]} exf4 {[%clk 00:00:12]} {[%emt 00:00:07]} 45. gxf4
{[%clk 00:09:57]} Kg6 {[%clk 00:00:16]} {[%emt 00:00:02]} 46. Kd4 {[%clk
00:10:00]} Kf6 {[%clk 00:00:17]} {[%emt 00:00:04]} 47. Ra6+ {[%clk 00:10:03]}
{[%emt 00:00:03]} Ke7 {[%clk 00:00:20]} {[%emt 00:00:01]} 48. Ke5 {[%clk
00:10:07]} {[%emt 00:00:01]} Kd7 {[%clk 00:00:22]} {[%emt 00:00:04]} 49. Kxf5
{[%clk 00:10:10]} {[%emt 00:00:01]} Ke7 {[%clk 00:00:25]} {[%emt 00:00:02]} 50.
Ke5 {[%clk 00:10:14]} {[%emt 00:00:01]} Kd7 {[%clk 00:00:27]} {[%emt 00:00:02]}
51. f5 {[%clk 00:10:18]} {[%emt 00:00:01]} Ke7 {[%clk 00:00:32]} {[%emt
00:00:01]} 52. f6+ {[%clk 00:10:22]} Kf7 {[%clk 00:00:35]} {[%emt 00:00:01]} 53.
Kf5 {[%clk 00:10:26]} Kf8 {[%clk 00:00:38]} {[%emt 00:00:02]} 54. Kg6 {[%clk
00:10:30]} {[%emt 00:00:02]} Ke8 {[%clk 00:00:42]} {[%emt 00:00:02]} 55. Rd6
{[%clk 00:10:32]} {[%emt 00:00:02]} Kf8 {[%clk 00:00:44]} {[%emt 00:00:03]} 56.
Rd8# {[%clk 00:10:36]} {[%emt 00:00:01]} 1-0

[Event "Open NK Rapid 2025"]
[Site "Helmond, Netherlands"]
[Date "2025.05.03"]
[Round "1.24"]
[White "Blok, Lukas"]
[Black "Margaryan, Artur"]
[Result "0-1"]
[TimeControl "15+5"]
[WhiteFideId "40110494"]
[BlackFideId "13304348"]
[WhiteElo "1741"]
[BlackElo "2100"]

1. c4 {[%clk 00:15:09]} Nf6 {[%clk 00:14:47]} {[%emt 00:00:23]} 2. Nc3 {[%clk
00:15:12]} {[%emt 00:00:02]} g6 {[%clk 00:14:44]} {[%emt 00:00:08]} 3. g3
{[%clk 00:15:14]} {[%emt 00:00:03]} Bg7 {[%clk 00:14:39]} {[%emt 00:00:10]} 4.
Bg2 {[%clk 00:15:17]} {[%emt 00:00:02]} d6 {[%clk 00:14:40]} {[%emt 00:00:04]}
5. d3 {[%clk 00:15:18]} {[%emt 00:00:04]} O-O {[%clk 00:14:42]} {[%emt
00:00:04]} 6. e4 {[%clk 00:15:20]} {[%emt 00:00:03]} c5 {[%clk 00:14:32]}
{[%emt 00:00:14]} 7. Nge2 {[%clk 00:15:11]} {[%emt 00:00:14]} Nc6 {[%clk
00:14:34]} {[%emt 00:00:04]} 8. O-O {[%clk 00:15:12]} {[%emt 00:00:03]} a6
{[%clk 00:14:27]} {[%emt 00:00:12]} 9. Rb1 {[%clk 00:14:43]} {[%emt 00:00:34]}
Rb8 {[%clk 00:14:12]} {[%emt 00:00:20]} 10. a3 {[%clk 00:14:16]} {[%emt
00:00:32]} b5 {[%clk 00:13:57]} {[%emt 00:00:21]} 11. cxb5 {[%clk 00:13:25]}
{[%emt 00:00:56]} axb5 {[%clk 00:13:59]} {[%emt 00:00:02]} 12. b4 {[%clk
00:13:28]} {[%emt 00:00:02]} cxb4 {[%clk 00:13:43]} {[%emt 00:00:22]} 13. axb4
{[%clk 00:13:31]} {[%emt 00:00:02]} Bd7 {[%clk 00:12:18]} {[%emt 00:01:29]} 14.
h3 {[%clk 00:09:34]} {[%emt 00:04:02]} Ne8 {[%clk 00:10:45]} {[%emt 00:01:39]}
15. Be3 {[%clk 00:07:58]} {[%emt 00:01:40]} Nc7 {[%clk 00:10:40]} {[%emt
00:00:10]} 16. Qd2 {[%clk 00:05:52]} {[%emt 00:02:11]} Na6 {[%clk 00:09:13]}
{[%emt 00:01:32]} 17. Na2 {[%clk 00:05:16]} {[%emt 00:00:42]} Be6 {[%clk
00:07:42]} {[%emt 00:01:36]} 18. Nec3 {[%clk 00:05:08]} {[%emt 00:00:13]} Qd7
{[%clk 00:07:26]} {[%emt 00:00:20]} 19. Kh2 {[%clk 00:04:45]} {[%emt 00:00:28]}
Nd4 {[%clk 00:07:07]} {[%emt 00:00:25]} 20. Ne2 {[%clk 00:03:23]} {[%emt
00:01:27]} Nxe2 {[%clk 00:05:53]} {[%emt 00:01:19]} 21. Qxe2 {[%clk 00:03:21]}
{[%emt 00:00:07]} Rfc8 {[%clk 00:05:41]} {[%emt 00:00:17]} 22. f4 {[%clk
00:02:36]} {[%emt 00:00:49]} d5 {[%clk 00:03:18]} {[%emt 00:02:29]} 23. Rfc1
{[%clk 00:01:50]} {[%emt 00:00:51]} d4 {[%clk 00:03:09]} {[%emt 00:00:14]} 24.
Bf2 {[%clk 00:01:28]} {[%emt 00:00:27]} f5 {[%clk 00:02:33]} {[%emt 00:00:41]}
25. exf5 {[%clk 00:00:55]} {[%emt 00:00:38]} gxf5 {[%clk 00:02:36]} {[%emt
00:00:01]} 26. Rxc8+ {[%clk 00:00:37]} {[%emt 00:00:24]} Rxc8 {[%clk 00:01:52]}
{[%emt 00:00:48]} 27. Nc1 {[%clk 00:00:17]} {[%emt 00:00:25]} Rc3 {[%clk
00:01:41]} {[%emt 00:00:16]} 28. Qd2 {[%clk 00:00:12]} {[%emt 00:00:10]} Bd5
{[%clk 00:01:34]} {[%emt 00:00:12]} 29. Ne2 {[%clk 00:00:13]} {[%emt 00:00:04]}
Bxg2 {[%emt 00:00:05]} 30. Kxg2 {[%clk 00:00:16]} {[%emt 00:00:01]} Qd5+ {[%clk
00:01:11]} {[%emt 00:00:29]} 31. Kh2 {[%clk 00:00:17]} {[%emt 00:00:04]} Ra3
{[%clk 00:01:13]} {[%emt 00:00:03]} 32. Qc1 {[%clk 00:00:07]} {[%emt 00:00:16]}
Ra2 {[%clk 00:01:11]} {[%emt 00:00:07]} 33. Rb2 {[%clk 00:00:10]} {[%emt
00:00:02]} Nxb4 {[%clk 00:00:58]} {[%emt 00:00:18]} 34. Qc8+ {[%clk 00:00:13]}
{[%emt 00:00:02]} Kf7 {[%emt 00:00:05]} 35. Rxa2 {[%clk 00:00:13]} {[%emt
00:00:03]} Nxa2 {[%clk 00:01:00]} {[%emt 00:00:04]} 36. Qc2 {[%clk 00:00:13]}
{[%emt 00:00:05]} Nc3 {[%clk 00:00:53]} {[%emt 00:00:13]} 37. Nxc3 {[%clk
00:00:13]} {[%emt 00:00:05]} dxc3 {[%clk 00:00:57]} {[%emt 00:00:01]} 38. d4
{[%clk 00:00:17]} {[%emt 00:00:02]} b4 {[%clk 00:00:58]} {[%emt 00:00:03]} 39.
g4 {[%clk 00:00:16]} {[%emt 00:00:06]} e6 {[%clk 00:00:49]} {[%emt 00:00:14]}
40. gxf5 {[%clk 00:00:17]} {[%emt 00:00:04]} Qxf5 {[%clk 00:00:50]} {[%emt
00:00:03]} 41. Qc1 {[%clk 00:00:17]} {[%emt 00:00:06]} Bh6 {[%clk 00:00:43]}
{[%emt 00:00:11]} 42. Bg3 {[%clk 00:00:19]} {[%emt 00:00:03]} Qd3 {[%clk
00:00:47]} {[%emt 00:00:02]} 43. f5 {[%clk 00:00:18]} {[%emt 00:00:06]} Bxc1
{[%clk 00:00:48]} {[%emt 00:00:03]} 0-1

[Event "Open NK Rapid 2025"]
[Site "Helmond, Netherlands"]
[Date "2025.05.03"]
[Round "1.25"]
[White "Kools, Thomas"]
[Black "Rijkers, Roman"]
[Result "1-0"]
[TimeControl "15+5"]
[WhiteFideId "1054759"]
[BlackFideId "1064380"]
[WhiteElo "2094"]
[BlackElo "1741"]

1. e4 {[%clk 00:15:07]} {[%emt 00:00:02]} c6 {[%clk 00:15:05]} {[%emt
00:00:06]} 2. Nc3 {[%clk 00:15:10]} {[%emt 00:00:03]} d5 {[%clk 00:14:56]}
{[%emt 00:00:13]} 3. Nf3 {[%clk 00:15:13]} {[%emt 00:00:02]} e6 {[%clk
00:14:51]} {[%emt 00:00:10]} 4. d4 {[%clk 00:15:07]} {[%emt 00:00:11]} c5
{[%clk 00:14:13]} {[%emt 00:00:44]} 5. exd5 {[%clk 00:14:14]} {[%emt 00:00:57]}
exd5 {[%clk 00:13:09]} {[%emt 00:01:09]} 6. dxc5 {[%clk 00:14:15]} {[%emt
00:00:04]} Bxc5 {[%clk 00:10:48]} {[%emt 00:02:27]} 7. Qxd5 {[%clk 00:14:02]}
{[%emt 00:00:17]} Qxd5 {[%clk 00:09:02]} {[%emt 00:01:52]} 8. Nxd5 {[%clk
00:14:04]} {[%emt 00:00:02]} Bd6 {[%clk 00:09:06]} {[%emt 00:00:01]} 9. Bb5+
{[%clk 00:12:56]} {[%emt 00:01:13]} Nc6 {[%clk 00:09:10]} {[%emt 00:00:01]} 10.
Bg5 {[%clk 00:11:57]} {[%emt 00:01:04]} Be6 {[%clk 00:08:24]} {[%emt 00:00:51]}
11. O-O-O {[%clk 00:11:44]} {[%emt 00:00:17]} f6 {[%clk 00:07:15]} {[%emt
00:01:15]} 12. Be3 {[%clk 00:11:32]} {[%emt 00:00:17]} Kf7 {[%clk 00:07:03]}
{[%emt 00:00:18]} 13. Nxf6 {[%clk 00:09:04]} {[%emt 00:02:32]} gxf6 {[%clk
00:04:39]} {[%emt 00:02:28]} 14. Rxd6 {[%clk 00:09:05]} {[%emt 00:00:05]} Nb4
{[%clk 00:04:38]} {[%emt 00:00:07]} 15. a3 {[%clk 00:08:02]} {[%emt 00:01:07]}
Nd5 {[%clk 00:04:41]} {[%emt 00:00:02]} 16. Re1 {[%clk 00:07:54]} {[%emt
00:00:12]} Nxe3 {[%clk 00:04:26]} {[%emt 00:00:21]} 17. Rxe3 {[%clk 00:07:56]}
{[%emt 00:00:03]} Bf5 {[%clk 00:04:30]} 18. Bc4+ {[%clk 00:07:28]} {[%emt
00:00:34]} Kg7 {[%clk 00:04:20]} {[%emt 00:00:15]} 19. Nh4 {[%clk 00:07:23]}
{[%emt 00:00:08]} Bg6 {[%clk 00:03:57]} {[%emt 00:00:29]} 20. Rd7+ {[%clk
00:07:14]} {[%emt 00:00:14]} Kh6 {[%clk 00:03:59]} {[%emt 00:00:03]} 21. Rh3
{[%clk 00:06:45]} {[%emt 00:00:33]} Kg5 {[%clk 00:03:07]} {[%emt 00:00:58]} 22.
f4+ {[%clk 00:06:27]} {[%emt 00:00:23]} Kg4 {[%emt 00:00:12]} 23. Nxg6 {[%clk
00:06:11]} {[%emt 00:00:19]} 1-0

[Event "Open NK Rapid 2025"]
[Site "Helmond, Netherlands"]
[Date "2025.05.03"]
[Round "2.1"]
[White "Madularea, David"]
[Black "Bok, Benjamin"]
[Result "1-0"]
[TimeControl "15+5"]
[WhiteFideId "1070215"]
[BlackFideId "1017063"]
[WhiteElo "1921"]
[BlackElo "2583"]

1. e4 {[%clk 00:15:07]} {[%emt 00:00:02]} c5 {[%clk 00:14:46]} {[%emt
00:00:25]} 2. Nf3 {[%clk 00:15:09]} {[%emt 00:00:03]} d6 {[%clk 00:14:49]}
{[%emt 00:00:01]} 3. d4 {[%clk 00:15:13]} {[%emt 00:00:02]} cxd4 {[%clk
00:14:53]} 4. Nxd4 {[%clk 00:15:16]} {[%emt 00:00:01]} Nf6 {[%clk 00:14:54]}
{[%emt 00:00:05]} 5. Nc3 {[%clk 00:15:19]} {[%emt 00:00:01]} a6 {[%clk
00:14:58]} {[%emt 00:00:01]} 6. Be2 {[%clk 00:15:14]} {[%emt 00:00:10]} e5
{[%clk 00:15:01]} {[%emt 00:00:02]} 7. Nb3 {[%clk 00:15:18]} {[%emt 00:00:01]}
Be7 {[%clk 00:15:05]} {[%emt 00:00:02]} 8. Be3 {[%clk 00:15:21]} {[%emt
00:00:01]} Be6 {[%clk 00:15:08]} {[%emt 00:00:02]} 9. f4 {[%clk 00:15:25]}
{[%emt 00:00:01]} exf4 {[%clk 00:13:55]} {[%emt 00:01:19]} 10. Bxf4 {[%clk
00:15:28]} {[%emt 00:00:02]} Nc6 {[%clk 00:13:51]} {[%emt 00:00:09]} 11. Qd2
{[%clk 00:15:31]} {[%emt 00:00:01]} O-O {[%clk 00:13:36]} {[%emt 00:00:21]} 12.
O-O-O {[%clk 00:15:33]} {[%emt 00:00:02]} Ne5 {[%clk 00:13:33]} {[%emt
00:00:09]} 13. Rhg1 {[%clk 00:15:37]} Rc8 {[%clk 00:10:13]} {[%emt 00:03:25]}
14. g4 {[%clk 00:15:38]} {[%emt 00:00:03]} b5 {[%clk 00:10:14]} {[%emt
00:00:05]} 15. g5 {[%clk 00:14:05]} {[%emt 00:01:38]} Nfd7 {[%clk 00:10:01]}
{[%emt 00:00:18]} 16. h4 {[%clk 00:12:42]} {[%emt 00:01:28]} Nb6 {[%clk
00:09:37]} {[%emt 00:00:29]} 17. h5 {[%clk 00:10:04]} {[%emt 00:02:42]} Qc7
{[%clk 00:09:16]} {[%emt 00:00:27]} 18. g6 {[%clk 00:09:15]} {[%emt 00:00:54]}
fxg6 {[%clk 00:01:29]} {[%emt 00:07:52]} 19. hxg6 {[%clk 00:09:04]} {[%emt
00:00:15]} Nxg6 {[%clk 00:01:25]} {[%emt 00:00:10]} 20. Bxd6 {[%clk 00:08:46]}
{[%emt 00:00:22]} Bxd6 {[%clk 00:01:26]} {[%emt 00:00:04]} 21. Qxd6 {[%clk
00:08:50]} {[%emt 00:00:02]} Nf4 {[%clk 00:01:24]} {[%emt 00:00:08]} 22. Qxc7
{[%clk 00:05:20]} {[%emt 00:03:34]} Rxc7 {[%clk 00:01:27]} {[%emt 00:00:02]} 23.
Nd4 {[%clk 00:05:16]} {[%emt 00:00:08]} Bc8 {[%clk 00:00:52]} {[%emt 00:00:40]}
24. Bf3 {[%clk 00:03:56]} {[%emt 00:01:25]} Bb7 {[%clk 00:00:25]} {[%emt
00:00:33]} 25. a3 {[%clk 00:03:20]} {[%emt 00:00:40]} Rcf7 {[%clk 00:00:20]}
{[%emt 00:00:11]} 26. Bh1 {[%clk 00:03:08]} {[%emt 00:00:17]} g6 {[%clk
00:00:20]} {[%emt 00:00:05]} 27. e5 {[%clk 00:02:38]} {[%emt 00:00:35]} Bxh1
{[%clk 00:00:15]} {[%emt 00:00:10]} 28. Rxh1 {[%clk 00:02:42]} Nc4 {[%clk
00:00:12]} {[%emt 00:00:08]} 29. Rhe1 {[%clk 00:02:42]} {[%emt 00:00:06]} Re8
{[%clk 00:00:11]} {[%emt 00:00:07]} 30. e6 {[%clk 00:01:35]} {[%emt 00:01:11]}
Rfe7 {[%clk 00:00:13]} {[%emt 00:00:03]} 31. Re4 {[%clk 00:01:39]} Nxe6 {[%clk
00:00:10]} {[%emt 00:00:09]} 32. Rde1 {[%clk 00:01:43]} {[%emt 00:00:01]} Nxd4
{[%clk 00:00:00]} {[%emt 00:00:10]} 1-0

[Event "Open NK Rapid 2025"]
[Site "Helmond, Netherlands"]
[Date "2025.05.03"]
[Round "2.2"]
[White "Fridman, Daniel"]
[Black "De Wit, Evan"]
[Result "1-0"]
[TimeControl "15+5"]
[WhiteFideId "11600454"]
[BlackFideId "1096389"]
[WhiteElo "2539"]
[BlackElo "1917"]

1. Nf3 {[%clk 00:15:08]} {[%emt 00:00:01]} Nf6 {[%clk 00:15:07]} {[%emt
00:00:03]} 2. c4 {[%clk 00:15:12]} {[%emt 00:00:01]} c5 {[%clk 00:15:08]}
{[%emt 00:00:05]} 3. Nc3 {[%clk 00:15:15]} {[%emt 00:00:02]} Nc6 {[%clk
00:15:11]} {[%emt 00:00:01]} 4. g3 {[%clk 00:15:17]} {[%emt 00:00:03]} g6
{[%clk 00:15:11]} {[%emt 00:00:05]} 5. Bg2 {[%clk 00:15:20]} {[%emt 00:00:02]}
Bg7 {[%clk 00:15:16]} 6. d4 {[%clk 00:15:23]} {[%emt 00:00:03]} cxd4 {[%clk
00:15:04]} {[%emt 00:00:16]} 7. Nxd4 {[%clk 00:15:26]} {[%emt 00:00:02]} O-O
{[%clk 00:13:38]} {[%emt 00:01:32]} 8. O-O {[%clk 00:15:28]} {[%emt 00:00:03]}
a6 {[%clk 00:13:21]} {[%emt 00:00:22]} 9. c5 {[%clk 00:13:59]} {[%emt
00:01:34]} Qc7 {[%clk 00:12:15]} {[%emt 00:01:11]} 10. Nb3 {[%clk 00:12:43]}
{[%emt 00:01:21]} b6 {[%clk 00:11:11]} {[%emt 00:01:10]} 11. Bf4 {[%clk
00:12:43]} {[%emt 00:00:03]} e5 {[%clk 00:08:21]} {[%emt 00:02:56]} 12. cxb6
{[%clk 00:12:44]} {[%emt 00:00:04]} Qxb6 {[%clk 00:08:01]} {[%emt 00:00:26]} 13.
Bxe5 {[%clk 00:09:45]} {[%emt 00:03:03]} Nxe5 {[%clk 00:08:05]} {[%emt
00:00:01]} 14. Bxa8 {[%clk 00:09:47]} {[%emt 00:00:02]} Bb7 {[%clk 00:08:09]}
{[%emt 00:00:02]} 15. Bxb7 {[%clk 00:09:24]} {[%emt 00:00:28]} Qxb7 {[%clk
00:08:13]} {[%emt 00:00:01]} 16. Qd4 {[%clk 00:08:57]} {[%emt 00:00:31]} Re8
{[%clk 00:06:33]} {[%emt 00:01:46]} 17. Rad1 {[%clk 00:08:52]} {[%emt
00:00:10]} Nfg4 {[%clk 00:05:25]} {[%emt 00:01:12]} 18. Qd5 {[%clk 00:08:55]}
{[%emt 00:00:03]} Qb4 {[%clk 00:03:53]} {[%emt 00:01:35]} 19. Rd4 {[%clk
00:06:16]} {[%emt 00:02:45]} Qe7 {[%clk 00:03:28]} {[%emt 00:00:30]} 20. h3
{[%clk 00:06:18]} {[%emt 00:00:03]} Nf6 {[%clk 00:03:19]} {[%emt 00:00:14]} 21.
Qd6 {[%clk 00:06:22]} {[%emt 00:00:02]} Qxd6 {[%clk 00:03:14]} {[%emt
00:00:10]} 22. Rxd6 {[%clk 00:06:25]} {[%emt 00:00:02]} Nc4 {[%clk 00:03:18]}
{[%emt 00:00:01]} 23. Rxa6 {[%emt 00:00:05]} Nxb2 {[%clk 00:03:19]} {[%emt
00:00:02]} 24. e3 {[%clk 00:06:04]} {[%emt 00:00:28]} Rc8 {[%clk 00:02:45]}
{[%emt 00:00:38]} 25. Na4 {[%clk 00:05:51]} {[%emt 00:00:19]} Nd3 {[%clk
00:02:22]} {[%emt 00:00:28]} 26. Nb6 {[%clk 00:05:18]} {[%emt 00:00:38]} Rc2
{[%clk 00:01:55]} {[%emt 00:00:32]} 27. Ra8+ {[%clk 00:05:01]} {[%emt
00:00:22]} Bf8 {[%clk 00:01:56]} {[%emt 00:00:04]} 28. Nd4 {[%clk 00:05:04]}
{[%emt 00:00:02]} Rb2 {[%clk 00:01:36]} {[%emt 00:00:26]} 29. Nc4 {[%clk
00:05:04]} {[%emt 00:00:04]} Rb7 {[%clk 00:01:34]} {[%emt 00:00:06]} 30. Rd1
{[%clk 00:04:44]} {[%emt 00:00:25]} Nc5 {[%clk 00:01:27]} {[%emt 00:00:13]} 31.
Nd6 {[%clk 00:04:11]} {[%emt 00:00:38]} Rb2 {[%clk 00:01:24]} {[%emt 00:00:08]}
32. Rc1 {[%clk 00:04:08]} {[%emt 00:00:07]} Kg7 {[%clk 00:00:57]} {[%emt
00:00:33]} 1-0

[Event "Open NK Rapid 2025"]
[Site "Helmond, Netherlands"]
[Date "2025.05.03"]
[Round "2.3"]
[White "De Oude, Sybe"]
[Black "Warmerdam, Max"]
[Result "0-1"]
[TimeControl "15+5"]
[WhiteFideId "40110052"]
[BlackFideId "1048104"]
[WhiteElo "1914"]
[BlackElo "2517"]

1. e4 {[%clk 00:15:08]} {[%emt 00:00:02]} c5 {[%clk 00:15:09]} {[%emt
00:00:01]} 2. Nc3 {[%clk 00:15:12]} {[%emt 00:00:01]} d6 {[%emt 00:00:04]} 3.
f4 {[%clk 00:15:16]} g6 {[%clk 00:15:13]} {[%emt 00:00:02]} 4. Nf3 {[%clk
00:15:20]} {[%emt 00:00:01]} Bg7 {[%clk 00:15:17]} {[%emt 00:00:02]} 5. Bc4
{[%clk 00:15:23]} {[%emt 00:00:02]} Nc6 {[%clk 00:15:20]} {[%emt 00:00:01]} 6.
d3 {[%clk 00:15:25]} {[%emt 00:00:03]} e6 {[%clk 00:15:24]} {[%emt 00:00:02]} 7.
O-O {[%clk 00:15:27]} {[%emt 00:00:03]} Nge7 {[%clk 00:15:27]} {[%emt
00:00:01]} 8. Qe1 {[%clk 00:15:30]} {[%emt 00:00:03]} O-O {[%clk 00:15:29]}
{[%emt 00:00:02]} 9. Qh4 {[%clk 00:15:30]} {[%emt 00:00:06]} Nd4 {[%clk
00:14:26]} {[%emt 00:01:07]} 10. Nxd4 {[%clk 00:15:21]} {[%emt 00:00:15]} cxd4
{[%clk 00:14:25]} {[%emt 00:00:05]} 11. Ne2 {[%clk 00:15:19]} {[%emt 00:00:07]}
d5 {[%clk 00:14:22]} {[%emt 00:00:09]} 12. exd5 {[%clk 00:14:16]} {[%emt
00:01:08]} Nxd5 {[%clk 00:13:50]} {[%emt 00:00:36]} 13. Qxd8 {[%clk 00:14:10]}
{[%emt 00:00:11]} Rxd8 {[%clk 00:13:54]} {[%emt 00:00:01]} 14. Bxd5 {[%clk
00:13:46]} {[%emt 00:00:30]} Rxd5 {[%clk 00:13:54]} {[%emt 00:00:04]} 15. b3
{[%clk 00:12:27]} {[%emt 00:01:25]} b6 {[%clk 00:13:18]} {[%emt 00:00:41]} 16.
Ba3 {[%clk 00:11:15]} {[%emt 00:01:16]} Bb7 {[%clk 00:13:16]} {[%emt 00:00:07]}
17. Ng3 {[%clk 00:10:31]} {[%emt 00:00:49]} Rc8 {[%clk 00:13:10]} {[%emt
00:00:11]} 18. Rf2 {[%clk 00:10:30]} {[%emt 00:00:06]} f5 {[%clk 00:12:33]}
{[%emt 00:00:41]} 19. Kf1 {[%clk 00:09:57]} {[%emt 00:00:39]} Kf7 {[%clk
00:12:27]} {[%emt 00:00:11]} 20. Bb2 {[%clk 00:08:54]} {[%emt 00:01:09]} Rdc5
{[%clk 00:11:58]} {[%emt 00:00:33]} 21. Rc1 {[%clk 00:08:47]} {[%emt 00:00:12]}
Ba6 {[%clk 00:11:51]} {[%emt 00:00:12]} 22. Rd2 {[%clk 00:08:10]} {[%emt
00:00:43]} Rd5 {[%clk 00:11:03]} {[%emt 00:00:53]} 23. Ne2 {[%clk 00:07:49]}
{[%emt 00:00:26]} h6 {[%clk 00:11:03]} {[%emt 00:00:04]} 24. g3 {[%clk
00:07:46]} {[%emt 00:00:08]} g5 {[%clk 00:11:05]} {[%emt 00:00:03]} 25. a4
{[%clk 00:07:44]} {[%emt 00:00:08]} Bf6 {[%clk 00:11:04]} {[%emt 00:00:06]} 26.
Kf2 {[%clk 00:07:24]} {[%emt 00:00:25]} Rd7 {[%clk 00:11:00]} {[%emt 00:00:09]}
27. Kf3 {[%clk 00:06:54]} {[%emt 00:00:35]} h5 {[%clk 00:10:22]} {[%emt
00:00:42]} 28. Kf2 {[%clk 00:06:46]} {[%emt 00:00:13]} h4 {[%clk 00:09:05]}
{[%emt 00:01:22]} 29. gxh4 {[%clk 00:06:16]} {[%emt 00:00:35]} gxf4 {[%clk
00:08:58]} {[%emt 00:00:12]} 30. h5 {[%clk 00:03:59]} {[%emt 00:02:23]} e5
{[%clk 00:08:51]} {[%emt 00:00:12]} 31. Rg1 {[%clk 00:03:48]} {[%emt 00:00:16]}
Rh8 {[%clk 00:08:50]} {[%emt 00:00:05]} 32. c3 {[%clk 00:02:47]} {[%emt
00:01:06]} dxc3 {[%clk 00:08:49]} {[%emt 00:00:06]} 33. Bxc3 {[%clk 00:02:41]}
{[%emt 00:00:12]} Rxh5 {[%clk 00:08:50]} {[%emt 00:00:03]} 34. Rh1 {[%clk
00:02:10]} {[%emt 00:00:37]} Bb7 {[%clk 00:08:47]} {[%emt 00:00:07]} 35. Rg1
{[%clk 00:02:03]} {[%emt 00:00:12]} Rh4 {[%emt 00:00:02]} 36. h3 Rxh3 {[%clk
00:08:50]} 37. Ke1 {[%clk 00:02:07]} {[%emt 00:00:02]} Rh2 {[%clk 00:08:22]} 38.
Ng3 {[%clk 00:02:04]} {[%emt 00:00:40]} f3 {[%clk 00:08:21]} 39. Rdg2 {[%clk
00:01:28]} {[%emt 00:00:47]} 0-1